fUST/lending_fUST_20241106
["ID","MTS","AMOUNT","RATE_DAILY","PERIOD"]
[341372842,1730851846515,-500.0,0.0003863,14]
[341372843,1730851846529,-500.0,0.0003863,14]
[341372844,1730851846546,-500.0,0.0003863,14]
[341372845,1730851846562,-500.0,0.0003863,14]
[341372846,1730851846578,-500.0,0.0003863,14]
[341372847,1730851846596,-500.0,0.0003863,14]
[341372849,1730851846610,-500.0,0.0003863,14]
[341372851,1730851846626,-500.0,0.0003863,14]
[341372853,1730851846642,-500.0,0.0003863,14]
[341372855,1730851846657,-508.43407498,0.0003863,14]
[341372856,1730851846668,-500.0,0.0003863,7]
[341372858,1730851846681,-507.0478876,0.0003863,14]
[341372860,1730851846695,-500.0,0.0003863,14]
[341372862,1730851846710,-500.0,0.0003863,14]
[341372865,1730851846725,-500.0,0.0003863,14]
[341372867,1730851846742,-500.0,0.0003863,14]
[341372868,1730851846753,-500.0,0.0003863,14]
[341372869,1730851846764,-500.0,0.0003863,14]
[341372870,1730851846778,-517.37416284,0.0003863,14]
[341372871,1730851846793,-1118.28,0.0003863,14]
[341372872,1730851846805,-500.0,0.0003863,14]
[341372873,1730851846819,-514.8992849,0.0003863,14]
[341372874,1730851846831,-500.0,0.0003863,14]
[341372875,1730851846842,-500.0,0.0003863,14]
[341372876,1730851846854,-500.0,0.0003863,14]
[341372877,1730851846867,-505.74164732,0.0003863,14]
[341372878,1730851846879,-500.0,0.0003863,14]
[341372879,1730851846891,-500.0,0.0003863,14]
[341372880,1730851846903,-644.89,0.0003863,14]
[341372882,1730851846915,-500.0,0.0003863,14]
[341372883,1730851846927,-636.46,0.0003863,14]
[341372884,1730851846940,-500.0,0.0003863,14]
[341372885,1730851846951,-500.0,0.0003863,14]
[341372886,1730851846963,-545.02152592,0.0003863,14]
[341372887,1730851846976,-500.0,0.0003863,14]
[341372888,1730851846988,-506.15754707,0.0003863,14]
[341372889,1730851847001,-500.0,0.0003863,14]
[341372890,1730851847013,-500.0,0.0003863,14]
[341372891,1730851847026,-631.58,0.0003863,14]
[341372892,1730851847039,-500.0,0.0003863,14]
[341372893,1730851847054,-4427.04,0.0003863,14]
[341372894,1730851847069,-500.0,0.0003863,14]
[341372895,1730851847081,-500.0,0.0003863,14]
[341372896,1730851847094,-500.0,0.0003863,14]
[341372897,1730851847107,-500.0,0.0003863,14]
[341372898,1730851847119,-1223.51,0.0003863,14]
[341372899,1730851847132,-500.0,0.0003863,14]
[341372900,1730851847144,-525.05,0.0003863,14]
[341372901,1730851847157,-500.0,0.0003863,14]
[341372902,1730851847169,-500.0,0.0003863,14]
[341372903,1730851847182,-500.0,0.0003863,14]
[341372904,1730851847195,-500.0,0.0003863,14]
[341372905,1730851847288,-500.0,0.0003863,14]
[341372906,1730851847301,-500.0,0.0003863,14]
[341372907,1730851847311,-500.0,0.0003863,14]
[341372908,1730851847320,-500.0,0.0003863,14]
[341372909,1730851847329,-6810.82,0.0003863,14]
[341372910,1730851847342,-500.0,0.0003863,14]
[341372911,1730851847351,-500.0,0.0003863,14]
[341372912,1730851847360,-3182.56,0.0003863,14]
[341372913,1730851847369,-500.0,0.0003863,14]
[341372914,1730851847379,-500.0,0.0003863,14]
[341372915,1730851847388,-500.0,0.0003863,14]
[341372916,1730851847397,-527.14265424,0.0003863,14]
[341372917,1730851847406,-500.0,0.0003863,14]
[341372918,1730851847415,-500.0,0.0003863,14]
[341372919,1730851847424,-500.0,0.0003863,14]
[341372920,1730851847434,-509.22250535,0.0003863,14]
[341372921,1730851847443,-500.0,0.0003863,14]
[341372922,1730851847453,-500.0,0.0003863,14]
[341372923,1730851847462,-500.0,0.0003863,14]
[341372924,1730851847471,-500.0,0.0003863,14]
[341372925,1730851847482,-500.0,0.0003863,14]
[341372926,1730851847493,-500.0,0.0003863,14]
[341372927,1730851847503,-500.0,0.0003863,14]
[341372928,1730851847512,-317.7539843,0.0003863,14]
[341372929,1730851847524,-500.0,0.0003863,14]
[341372930,1730851847533,-500.0,0.0003863,14]
[341372931,1730851847542,-506.26049178,0.0003863,14]
[341372932,1730851847551,-500.0,0.0003863,14]
[341372933,1730851847561,-474.90294503,0.0003863,14]
[341372934,1730851847571,-500.0,0.0003863,14]
[341372935,1730851847580,-606.93,0.0003863,14]
[341372936,1730851847590,-595.6971547,0.0003863,14]
[341372937,1730851847599,-8825.3,0.0003863,14]
[341372938,1730851847608,-218.48,0.0003863,14]
[341372939,1730851847618,-500.0,0.0003863,14]
[341372940,1730851847628,-500.0,0.0003863,14]
[341372941,1730851847637,-500.0,0.0003863,14]
[341372942,1730851847646,-500.0,0.0003863,14]
[341372943,1730851847656,-1455.36,0.0003863,14]
[341372944,1730851847665,-508.98833859,0.0003863,14]
[341372945,1730851847675,-500.0,0.0003863,14]
[341372946,1730851847684,-2815.03,0.0003863,14]
[341372947,1730851847693,-500.0,0.0003863,14]
[341372948,1730851847702,-500.0,0.0003863,14]
[341372949,1730851847711,-500.0,0.0003863,14]
[341372950,1730851847721,-500.0,0.0003863,14]
[341372951,1730851847732,-497.27298874,0.0003863,14]
[341372952,1730851847741,-729.46,0.0003863,14]
[341372953,1730851847751,-500.0,0.0003863,14]
[341372954,1730851847761,-500.0,0.0003863,7]
[341372955,1730851847770,-500.0,0.0003863,2]
[341372956,1730851847781,-500.0,0.0003863,14]
[341372957,1730851847791,-527.57042257,0.0003863,14]
[341372958,1730851847800,-500.0,0.0003863,14]
[341372959,1730851847809,-644.63885971,0.0003863,14]
[341372960,1730851847818,-500.0,0.0003863,14]
[341372961,1730851847828,-500.0,0.0003863,14]
[341372962,1730851847837,-500.0,0.0003863,14]
[341372963,1730851847846,-500.0,0.0003863,14]
[341372964,1730851847855,-510.22539395,0.0003863,14]
[341372965,1730851847864,-2845.09,0.0003863,14]
[341372966,1730851847873,-550.64,0.0003863,14]
[341372967,1730851847884,-500.0,0.0003863,14]
[341372968,1730851847894,-500.0,0.0003863,14]
[341372969,1730851847903,-502.1795883,0.0003863,14]
[341372970,1730851847913,-500.0,0.0003863,14]
[341372971,1730851847923,-515.35,0.0003863,14]
[341372972,1730851847934,-500.0,0.0003863,14]
[341372973,1730851847944,-508.95096684,0.0003863,14]
[341372974,1730851847954,-500.0,0.0003863,14]
[341372975,1730851847965,-1340.12,0.0003863,14]
[341372976,1730851847975,-488.72863006,0.0003863,14]
[341372977,1730851847986,-500.0,0.0003863,14]
[341372978,1730851847995,-500.0,0.0003863,14]
[341372979,1730851848005,-500.0,0.0003863,14]
[341372980,1730851848014,-500.0,0.0003863,14]
[341372981,1730851848024,-515.35950812,0.0003863,14]
[341372982,1730851848033,-500.0,0.0003863,14]
[341372983,1730851848043,-500.0,0.0003863,14]
[341372984,1730851848052,-678.27,0.0003863,14]
[341372985,1730851848061,-250.0,0.0003863,14]
[341372986,1730851848070,-500.0,0.0003863,14]
[341372987,1730851848079,-500.0,0.0003863,14]
[341372988,1730851848089,-500.0,0.0003863,14]
[341372989,1730851848098,-500.0,0.0003863,14]
[341372990,1730851848108,-500.0,0.0003863,14]
[341372991,1730851848118,-500.0,0.0003863,14]
[341372992,1730851848127,-192.0,0.00038663,14]
[341372993,1730851848137,-500.0,0.00038673,5]
[341372994,1730851848147,-500.0,0.00038673,5]
[341372995,1730851848156,-500.0,0.00038673,5]
[341372996,1730851848165,-39077.16826801,0.00038786,2]
[341372997,1730851848438,-1665.61454358,0.00038786,2]
[341372998,1730851848450,-18660.46625302,0.00038786,2]
[341372999,1730851848539,384.90125886,0.00020816,2]
[341373000,1730851848560,135.93207447,0.00020816,2]
[341373001,1730851848573,-655.04817351,0.00038346,10]
[341373004,1730851978717,176.310866,0.00013973,2]
[341373009,1730852469598,520.83333333,0.00020816,2]
[341373011,1730852556385,177.873881,0.00013973,2]
[341373019,1730852730105,-745.35,0.00025,60]
[341373020,1730852730127,-204.501,0.0003,2]
[341373021,1730852730148,-164.525,0.0003,2]
[341373022,1730852730170,-151.0,0.0003,120]
[341373023,1730852730191,-64.12991839,0.000301,2]
[341373024,1730852734148,-108.13073261,0.000301,2]
[341373025,1730852734170,-200.0,0.000309,120]
[341373026,1730852734192,-151.0,0.00033534,120]
[341373027,1730852734214,-199.668476,0.00034335,2]
[341373028,1730852734234,-323.93,0.00034432,30]
[341373029,1730852734260,-456.1638799,0.0003458,2]
[341373030,1730852734281,-318.9,0.00035,2]
[341373031,1730852734303,-151.0,0.00037068,120]
[341373032,1730852734324,-400.0,0.00037998,2]
[341373033,1730852734347,-500.0,0.00037999,15]
[341373034,1730852734368,-9.01955435,0.00037999,15]
[341373038,1730852832099,-165.0,0.00033,2]
[341373039,1730852832126,-287.01,0.00036,2]
[341373040,1730852832152,-926.80665299,0.00037899,2]
[341373041,1730852832178,-500.0,0.00037998,15]
[341373042,1730852832205,-500.0,0.00037998,7]
[341373043,1730852832231,-468.16763435,0.00037998,15]
[341373044,1730852835095,-520.83333333,0.00031631,2]
[341373045,1730852835118,-32.64265845,0.00037998,15]
[341373046,1730852835140,-364.81447733,0.00037998,15]
[341373047,1730852840087,-67.06173416,0.00037998,15]
[341373048,1730852840109,-500.0,0.00037998,2]
[341373049,1730852840131,-96.40154355,0.00037998,15]
[341373050,1730852841396,-403.59845645,0.00037998,15]
[341373051,1730852841419,-302.22411296,0.00037998,15]
[341373052,1730852851083,-258.31,0.00036,2]
[341373053,1730852851107,-199.98797739,0.00037998,15]
[341373054,1730852851130,-500.0,0.00037998,15]
[341373055,1730852851150,-6.99810839,0.00037998,15]
[341373057,1730852904103,3560.70759907,0.000125,2]
[341373059,1730852947126,-667.29621472,0.00023,2]
[341373060,1730852947147,-520.83333333,0.00028928,2]
[341373061,1730852957615,520.83333333,0.00026224,2]
[341373069,1730853019750,520.83333333,0.0002352,2]
[341373117,1730853031975,-11281.00422889,0.000333,2]
[341373127,1730853035426,-500.0,0.00033299,7]
[341373128,1730853035436,-500.0,0.00033299,2]
[341373129,1730853035446,-118.68385013,0.00033299,7]
[341373130,1730853035458,-381.31614987,0.00033299,7]
[341373131,1730853035468,-500.0,0.00033299,7]
[341373132,1730853035477,-500.0,0.00033299,7]
[341373133,1730853035492,-19.87185013,0.00033299,7]
[341373150,1730853037980,-480.12814987,0.00033299,7]
[341373152,1730853037992,-500.0,0.00033299,7]
[341373154,1730853038002,-500.0,0.00033299,7]
[341373156,1730853038012,-500.0,0.00033299,2]
[341373158,1730853038023,-500.0,0.00033299,7]
[341373160,1730853038034,-322.94619292,0.00033299,7]
[341373162,1730853038044,-500.0,0.00033299,7]
[341373165,1730853038058,-500.0,0.00033299,2]
[341373167,1730853038068,-457.75149184,0.00033299,7]
[341373169,1730853038078,-500.0,0.00033299,7]
[341373171,1730853038089,-500.0,0.00033299,7]
[341373174,1730853038100,-500.0,0.00033299,7]
[341373176,1730853038111,-500.0,0.00033299,7]
[341373178,1730853038120,-500.0,0.00033299,7]
[341373180,1730853038130,-500.0,0.00033299,2]
[341373182,1730853038140,-500.0,0.00033299,7]
[341373184,1730853038149,-500.0,0.00033299,7]
[341373186,1730853038159,-500.0,0.00033299,7]
[341373188,1730853038169,-528.19262743,0.00033299,7]
[341373190,1730853038178,-500.0,0.00033299,7]
[341373192,1730853038187,-500.0,0.00033299,7]
[341373194,1730853038196,-500.0,0.00033299,2]
[341373196,1730853038206,-500.0,0.00033299,7]
[341373198,1730853038215,-500.0,0.00033299,7]
[341373200,1730853038225,-500.0,0.00033299,7]
[341373201,1730853038236,-265.20300802,0.00033299,7]
[341373203,1730853038248,-234.79699198,0.00033299,7]
[341373205,1730853038258,-500.0,0.00033299,2]
[341373207,1730853038267,-500.0,0.00033299,7]
[341373209,1730853038277,-495.67055197,0.00033299,7]
[341373216,1730853039932,-168.0,0.00033299,2]
[341373217,1730853039943,-4.32944803,0.00033299,7]
[341373218,1730853039953,-500.0,0.00033299,2]
[341373219,1730853039964,-500.0,0.00033299,7]
[341373220,1730853039973,-500.0,0.00033299,7]
[341373221,1730853039986,-541.5844621,0.00033299,7]
[341373222,1730853039996,-500.0,0.00033299,2]
[341373223,1730853040006,-500.0,0.00033299,7]
[341373224,1730853040017,-500.0,0.00033299,7]
[341373225,1730853040027,-500.0,0.00033299,7]
[341373226,1730853040037,-500.0,0.00033299,7]
[341373227,1730853040046,-500.0,0.00033299,7]
[341373228,1730853040056,-500.0,0.00033299,2]
[341373229,1730853040066,-411.73536858,0.00033299,7]
[341373230,1730853040075,-181.26440071,0.00033299,2]
[341373249,1730853043670,-318.73559929,0.00033299,2]
[341373250,1730853043680,-438.0,0.00033299,7]
[341373251,1730853043690,-500.0,0.00033299,7]
[341373252,1730853043700,-500.0,0.00033299,2]
[341373253,1730853043710,-500.0,0.00033299,7]
[341373254,1730853043719,-500.0,0.00033299,2]
[341373255,1730853043729,-500.0,0.00033299,7]
[341373256,1730853043741,-3784.16152912,0.000333,2]
[341373257,1730853043896,-224.99352558,0.000333,2]
[341373258,1730853043906,-88.09676807,0.0003398,4]
[341373274,1730853045956,-1482.85494434,0.0003398,4]
[341373275,1730853045967,-286.40806768,0.00034431,7]
[341373276,1730853045979,-769.38680658,0.00034432,2]
[341373277,1730853045990,-44452.86628738,0.00034432,2]
[341373278,1730853046205,-1.5282422,0.00034432,2]
[341373282,1730853046262,-78.42472993,0.00034432,2]
[341373300,1730853082043,520.83333333,0.00020816,2]
[341373306,1730853120931,184.467812,0.00031658,2]
[341373309,1730853270046,175.146729,0.00013973,2]
[341373312,1730853494275,8800.0,0.0002,10]
[341373314,1730853693469,520.83333333,0.00020816,2]
[341373319,1730853957108,-151.0,0.0003,120]
[341373320,1730853957132,-151.0,0.0003,120]
[341373321,1730853957155,-1707.11909,0.000301,2]
[341373322,1730853957177,-169.8032054,0.00030137,2]
[341373323,1730853957198,-297.94899879,0.00030197,2]
[341373324,1730853980871,175.707514,0.00013973,2]
[341373327,1730854026100,-170.0445,0.0003,2]
[341373328,1730854026121,-520.83333333,0.000301,2]
[341373329,1730854026143,-350.77329,0.000309,120]
[341373330,1730854026165,-181.7288755,0.00030943,2]
[341373331,1730854026186,-838.2679202,0.00031124,2]
[341373332,1730854026208,-164.0771091,0.00031213,2]
[341373333,1730854026230,-179.2168671,0.00032877,120]
[341373334,1730854026253,-165.0,0.00033,2]
[341373335,1730854026274,-1029.84220473,0.00033499,2]
[341373336,1730854026295,-395.0,0.00033596,2]
[341373337,1730854026316,-378.0,0.00033596,2]
[341373338,1730854026336,-500.0,0.00033597,7]
[341373339,1730854026356,-500.0,0.00033597,7]
[341373340,1730854026376,-500.0,0.00033597,7]
[341373341,1730854026398,-226.84271801,0.00033597,7]
[341373342,1730854026418,-500.0,0.00033597,7]
[341373343,1730854026438,-169.79918082,0.00033597,7]
[341373344,1730854026458,-500.0,0.00033597,2]
[341373345,1730854026479,-500.0,0.00033597,7]
[341373346,1730854026501,-500.0,0.00033597,7]
[341373347,1730854026531,-500.0,0.00033597,7]
[341373348,1730854026552,-202.97427912,0.00033597,7]
[341373349,1730854026572,-500.0,0.00033597,7]
[341373350,1730854026600,-500.0,0.00033597,7]
[341373351,1730854026622,-500.0,0.00033597,7]
[341373352,1730854026656,-500.0,0.00033597,2]
[341373353,1730854026679,-500.0,0.00033597,7]
[341373354,1730854026700,-262.151368,0.00033597,7]
[341373355,1730854026723,-57.69520026,0.00033597,7]
[341373356,1730854038092,-285.64721716,0.00033597,7]
[341373357,1730854038113,-500.0,0.00033597,7]
[341373358,1730854038136,-500.0,0.00033597,7]
[341373359,1730854038159,-500.0,0.00033597,7]
[341373360,1730854038182,-321.14922965,0.00033597,2]
[341373361,1730854038205,-500.0,0.00033597,7]
[341373362,1730854038228,-49.59657633,0.00033597,7]
[341373363,1730854039126,-450.40342367,0.00033597,7]
[341373364,1730854039148,-500.0,0.00033597,7]
[341373365,1730854039169,-70.49186068,0.00033597,7]
[341373366,1730854042099,-400.49274041,0.00033597,7]
[341373367,1730854042120,-500.0,0.00033597,7]
[341373368,1730854042143,-117.43028883,0.00033597,7]
[341373369,1730854148323,-520.83333333,0.00026386,2]
[341373370,1730854148348,-521.0277057,0.0003083,2]
[341373371,1730854181619,520.83333333,0.0002453,2]
[341373404,1730854232241,-192.226199,0.00032877,120]
[341373405,1730854232254,-150.0,0.00033,30]
[341373407,1730854232268,-901.11192913,0.000335,2]
[341373409,1730854232282,-152.43,0.000335,31]
[341373411,1730854232299,-218.99828901,0.00033598,7]
[341373413,1730854232312,-500.0,0.00033598,7]
[341373415,1730854232328,-391.43846588,0.00033598,7]
[341373417,1730854232344,-153.05986419,0.00033598,7]
[341373453,1730854238124,-346.94013581,0.00033598,7]
[341373454,1730854238136,-500.0,0.00033598,7]
[341373455,1730854238147,-183.07097678,0.00033598,7]
[341373456,1730854238159,-500.0,0.00033598,7]
[341373457,1730854238175,-500.0,0.00033598,7]
[341373458,1730854238187,-276.2151368,0.00033598,7]
[341373459,1730854238199,-5000.0,0.00033598,120]
[341373460,1730854238211,-200.48564738,0.00033599,7]
[341373461,1730854238222,-2098.95009277,0.00033599,120]
[341373510,1730854240099,-2901.04990723,0.00033599,120]
[341373511,1730854240110,-5000.0,0.00033599,120]
[341373512,1730854240122,-166.82887399,0.00033599,7]
[341373513,1730854240134,-26107.41081882,0.000336,2]
[341373535,1730854243025,-470.27444612,0.00033598,7]
[341373536,1730854243036,-500.0,0.00033598,7]
[341373537,1730854243045,-500.0,0.00033598,7]
[341373538,1730854243055,-19813.60741763,0.000336,2]
[341373539,1730854243081,-4078.98176355,0.000336,2]
[341373540,1730854243090,-577.59349659,0.000336,5]
[341373541,1730854243100,-602.41497244,0.000336,5]
[341373542,1730854243110,-500.0,0.000336,2]
[341373544,1730854243120,-240.16614667,0.000336,7]
[341373546,1730854243129,-151.0,0.00033753,120]
[341373548,1730854243139,-151.75016936,0.00034,30]
[341373550,1730854243148,-1116.179069,0.00034428,120]
[341373552,1730854243157,-3203.23606452,0.00034428,2]
[341373554,1730854243860,520.83333333,0.00022673,2]
[341373578,1730854306039,520.83333333,0.00020816,2]
[341373581,1730854632836,174.653881,0.00013973,2]
[341373592,1730854907494,300126.7504715,0.00034236,120]
[341373593,1730854918152,520.83333333,0.00020816,2]
[341373594,1730855135112,-230.104423,0.000287,2]
[341373595,1730855135134,-195.658217,0.00030914,2]
[341373596,1730855135159,-935.51688472,0.00031021,2]
[341373597,1730855232098,-1089.02153258,0.00031021,2]
[341373598,1730855232119,-520.83333333,0.00031021,2]
[341373599,1730855232141,-189.31160693,0.00032457,2]
[341373600,1730855234153,-10.35687287,0.00032457,2]
[341373601,1730855234182,-187.889754,0.00032877,120]
[341373602,1730855234211,-122.809438,0.00033,2]
[341373603,1730855238087,-75.190562,0.00033,2]
[341373604,1730855238108,-165.0,0.00033,2]
[341373605,1730855238128,-198.0,0.00033151,2]
[341373606,1730855238150,-788.47293798,0.00034135,2]
[341373607,1730855238174,-168.52903609,0.00034228,38]
[341373608,1730855238198,-400.0,0.00034233,2]
[341373609,1730855238221,-300.0,0.00034233,2]
[341373610,1730855238243,-92.47300454,0.00034234,7]
[341373611,1730855243094,-95.31122952,0.00034234,7]
[341373612,1730855243117,-216.56996331,0.00034234,7]
[341373613,1730855243139,-381.77553657,0.00034234,7]
[341373614,1730855243162,-355.37607325,0.00034234,7]
[341373615,1730855244096,-100.12083147,0.00034234,7]
[341373616,1730855244120,-252.91279298,0.00034234,7]
[341373617,1730855244141,-160.11076445,0.00034235,7]
[341373618,1730855244164,-500.0,0.00034428,7]
[341373619,1730855244190,-500.0,0.00034428,7]
[341373620,1730855244211,-550.14477411,0.00034428,7]
[341373621,1730855244231,-151.14427744,0.00034432,7]
[341373622,1730855244254,-198.0,0.00034521,2]
[341373623,1730855244277,-151.0,0.00034603,120]
[341373624,1730855244298,-321.86,0.00035,2]
[341373625,1730855244320,-4450.99710918,0.0003503,2]
[341373626,1730855247095,-1005.56810224,0.0003503,2]
[341373627,1730855354078,-520.83333333,0.00026939,2]
[341373628,1730855354099,-5207.62717511,0.00029584,61]
[341373629,1730855359120,-840.05711949,0.00029584,61]
[341373630,1730855395474,268.69853,0.00030898,2]
[341373631,1730855407314,520.83333333,0.00024898,2]
[341373632,1730855407684,184.467812,0.00030624,2]
[341373633,1730855423977,160.11076445,0.00030624,7]
[341373722,1730855432204,-18443.28467795,0.00034234,2]
[341373723,1730855432213,-467.00500549,0.00034234,2]
[341373725,1730855432223,-21826.0,0.00034234,2]
[341373728,1730855432233,-10003.94625866,0.00034234,10]
[341373731,1730855432245,-1000.0,0.000348,10]
[341373734,1730855432256,-1000.0,0.000348,20]
[341373737,1730855432265,-289.68,0.00035,2]
[341373739,1730855432275,-1829.43040353,0.0003503,2]
[341373742,1730855432285,-788.47293794,0.00035244,2]
[341373746,1730855432294,-153.0,0.00036247,30]
[341373748,1730855432304,-204.0,0.00036247,2]
[341373751,1730855432314,-788.47293794,0.00036354,2]
[341373753,1730855432324,-153.0,0.00036893,2]
[341373754,1730855432336,-153.0,0.00036893,2]
[341373755,1730855432346,-788.47293794,0.00037463,2]
[341373756,1730855432355,-151.0,0.00037507,120]
[341373757,1730855432365,-9902.0,0.00038,30]
[341373758,1730855432375,-1199.999999,0.00038,2]
[341373759,1730855432384,-1493.37932486,0.000382,109]
[341373760,1730855432393,-1493.37932482,0.000382,109]
[341373761,1730855432403,-1493.37932482,0.000382,109]
[341373762,1730855432413,-500.0,0.00038256,2]
[341373763,1730855432422,-1191.14,0.00038355,120]
[341373764,1730855432432,-477.9701732,0.00038355,2]
[341373765,1730855432442,-405.65601356,0.00038356,14]
[341373766,1730855432452,-500.0,0.00038356,14]
[341373767,1730855432462,-500.0,0.00038356,14]
[341373768,1730855432470,-500.0,0.00038356,14]
[341373769,1730855432480,-524.89959751,0.00038356,14]
[341373770,1730855432490,-500.0,0.00038356,14]
[341373771,1730855432499,-508.73353661,0.00038356,14]
[341373772,1730855432509,-500.0,0.00038356,14]
[341373773,1730855432519,-500.0,0.00038356,14]
[341373774,1730855432529,-500.0,0.00038356,14]
[341373775,1730855432538,-517.93899879,0.00038356,14]
[341373776,1730855432547,-500.0,0.00038356,14]
[341373777,1730855432558,-500.0,0.00038356,14]
[341373778,1730855432567,-500.0,0.00038356,14]
[341373779,1730855432577,-500.0,0.00038356,14]
[341373780,1730855432591,-500.0,0.00038356,14]
[341373781,1730855432606,-519.08224234,0.00038356,14]
[341373782,1730855432616,-368.79941261,0.00038356,14]
[341373783,1730855432625,-637.07683377,0.00038356,14]
[341373784,1730855432635,-500.0,0.00038356,14]
[341373785,1730855432645,-502.85890861,0.00038356,14]
[341373786,1730855432655,-151.0,0.00038356,14]
[341373787,1730855432665,-156.479974,0.00038356,14]
[341373788,1730855432675,-500.0,0.00038356,14]
[341373789,1730855432686,-505.16890856,0.00038356,14]
[341373790,1730855432696,-501.65601172,0.00038356,14]
[341373791,1730855432706,-367.9016132,0.00038356,14]
[341373792,1730855432716,-709.11394042,0.00038356,30]
[341373793,1730855432726,-502.46448374,0.00038356,14]
[341373794,1730855432735,-513.91845747,0.00038356,14]
[341373795,1730855432745,-521.16735338,0.00038356,14]
[341373796,1730855432755,-151.0,0.00038356,14]
[341373797,1730855432765,-421.11975488,0.00038356,14]
[341373798,1730855432775,-500.0,0.00038356,14]
[341373799,1730855432785,-506.17743117,0.00038356,14]
[341373800,1730855432795,-500.0,0.00038356,14]
[341373801,1730855432804,-190.92928459,0.00038356,14]
[341373802,1730855432813,-500.0,0.00038356,14]
[341373803,1730855432822,-500.69750789,0.00038356,14]
[341373804,1730855432839,-500.0,0.00038356,14]
[341373805,1730855432847,-500.0,0.00038356,14]
[341373806,1730855432857,-224.31482418,0.00038356,14]
[341373807,1730855432866,-500.0,0.00038356,14]
[341373808,1730855432875,-500.0,0.00038356,14]
[341373809,1730855432885,-500.0,0.00038356,14]
[341373810,1730855432894,-477.23380652,0.00038356,14]
[341373811,1730855432903,-500.0,0.00038356,14]
[341373812,1730855432913,-500.0,0.00038356,14]
[341373813,1730855432923,-272.53381503,0.00038356,14]
[341373814,1730855432932,-646.64561766,0.00038356,14]
[341373815,1730855432941,-500.0,0.00038356,14]
[341373816,1730855432951,-500.0,0.00038356,14]
[341373817,1730855432961,-500.0,0.00038356,14]
[341373818,1730855432970,-505.59435837,0.00038356,14]
[341373819,1730855432980,-500.0,0.00038356,14]
[341373820,1730855432989,-500.0,0.00038356,14]
[341373821,1730855432998,-500.0,0.00038356,14]
[341373822,1730855433008,-500.0,0.00038356,14]
[341373823,1730855433018,-569.36,0.00038356,14]
[341373824,1730855433027,-500.0,0.00038356,10]
[341373825,1730855433037,-500.0,0.00038356,14]
[341373826,1730855433123,-500.0,0.00038356,14]
[341373827,1730855433134,-500.0,0.00038356,14]
[341373828,1730855433144,-500.0,0.00038356,14]
[341373829,1730855433153,-340.61858136,0.00038356,14]
[341373830,1730855433163,-500.0,0.00038356,14]
[341373831,1730855433172,-531.73827452,0.00038356,14]
[341373832,1730855433182,-500.0,0.00038356,14]
[341373833,1730855433192,-500.0,0.00038356,14]
[341373834,1730855433201,-500.0,0.00038356,14]
[341373835,1730855433210,-500.0,0.00038356,14]
[341373836,1730855433220,-500.0,0.00038356,14]
[341373837,1730855433229,-500.0,0.00038356,14]
[341373838,1730855433243,-500.0,0.00038356,14]
[341373839,1730855433253,-152.941684,0.00038356,14]
[341373840,1730855433262,-500.0,0.00038356,14]
[341373841,1730855433272,-500.0,0.00038356,14]
[341373842,1730855433282,-502.73674925,0.00038356,14]
[341373843,1730855433292,-511.06075661,0.00038356,14]
[341373844,1730855433301,-504.47781942,0.00038356,14]
[341373845,1730855433310,-500.0,0.00038356,14]